bitfinex/quotes_ETHUSD_20250824
["timestamp","ask_amount","ask_price","bid_price","bid_amount"]
[1756075217923,0.4515,4755.1,4754.9,0.004]
[1756075218112,3.9793,4755.0,4754.9,0.004]
[1756075218529,4.4308,4755.0,4754.9,0.004]
[1756075219453,0.7368,4755.0,4754.9,0.004]
[1756075219638,4.4308,4755.0,4754.9,0.004]
[1756075221064,0.7368,4755.0,4754.9,0.004]
[1756075221226,4.4308,4755.0,4754.9,0.004]
[1756075222259,0.7368,4755.0,4754.9,0.004]
[1756075222441,1.7228,4755.2,4754.9,0.004]
[1756075222442,5.4168,4755.2,4754.9,0.004]
[1756075222622,0.7368,4755.0,4754.9,0.004]
[1756075224334,4.4308,4755.0,4754.9,0.004]
[1756075225255,0.7368,4755.0,4754.9,0.004]
[1756075225625,4.4308,4755.0,4754.9,0.004]
[1756075225867,3.694,4755.0,4754.9,0.004]
[1756075226326,4.4308,4755.0,4754.9,0.004]
[1756075230644,0.7368,4755.0,4754.9,0.004]
[1756075231037,4.4308,4755.0,4754.9,0.004]
[1756075231434,7.4308,4755.0,4754.4,0.004]
[1756075231636,3.4515,4754.9,4754.4,0.004]
[1756075231864,0.2853,4754.5,4754.4,0.004]
[1756075232029,3.9793,4754.5,4754.4,0.004]
[1756075232364,4.4308,4754.5,4754.4,0.004]
[1756075232563,5.0908,4754.5,4754.4,0.004]
[1756075232984,10.19407058,4754.5,4754.4,0.004]
[1756075233472,10.52329554,4754.5,4754.4,0.004]
[1756075233681,8.42002496,4754.5,4754.4,0.004]
[1756075234742,7.75902496,4754.5,4754.4,0.004]
[1756075235275,7.75902496,4754.5,4754.1,0.044]
[1756075235276,35.76331482,4754.4,4754.0,0.004]
[1756075235572,2.7635173,4754.0,4753.5,0.004]
[1756075235770,3.0,4754.2,4753.5,0.004]
[1756075235771,6.04892454,4753.7,4753.5,0.004]
[1756075235971,3.66,4753.6,4753.2,0.004]
[1756075236172,3.694,4753.5,4753.2,0.004]
[1756075236371,5.311,4753.4,4753.2,0.004]
[1756075236765,3.694,4753.3,4753.2,0.004]
[1756075237339,1.617,4753.4,4753.2,0.004]
[1756075237643,3.694,4753.3,4753.2,0.004]
[1756075238580,1.617,4753.4,4753.2,0.004]
[1756075238749,3.693,4753.3,4753.2,0.004]
[1756075239280,4.4298,4753.3,4753.2,0.004]
[1756075239784,7.4298,4753.3,4753.2,0.004]
[1756075240874,3.7368,4753.3,4753.2,0.004]
[1756075241072,9.53460156,4753.3,4753.2,0.004]
[1756075241294,10.19460156,4753.3,4753.2,0.004]
[1756075241500,10.29940156,4753.3,4753.2,0.004]
[1756075241679,8.1956,4753.3,4753.2,0.004]
[1756075242911,3.7988,4753.3,4753.2,0.004]
[1756075243087,4.2321,4753.3,4753.2,0.004]
[1756075243495,3.7988,4753.3,4753.2,0.004]
[1756075243672,4.52,4753.3,4753.2,0.004]
[1756075246209,0.1048,4753.3,4753.2,0.004]
[1756075246700,3.7978,4753.3,4753.2,0.21919301]
[1756075247311,4.519,4753.3,4753.2,0.004]
[1756075247459,0.1048,4753.3,4753.2,0.004]
[1756075247662,3.7978,4753.3,4753.2,0.004]
[1756075248408,0.1048,4753.3,4753.2,0.004]
[1756075248769,3.7978,4753.3,4753.2,0.004]
[1756075249596,0.1048,4753.3,4753.2,0.004]
[1756075250075,3.7978,4753.3,4753.2,0.004]
[1756075250463,0.1048,4753.3,4753.2,0.004]
[1756075250665,3.7978,4753.3,4753.2,0.004]
[1756075252096,0.1048,4753.3,4753.2,0.004]
[1756075252296,3.7978,4753.3,4753.2,0.004]
[1756075252463,0.1048,4753.3,4753.2,2.10784583]
[1756075252667,0.1048,4753.5,4753.4,2.10375731]
[1756075252884,0.1048,4753.5,4753.4,2.5293132]
[1756075253473,2.0513,4755.5,4753.4,0.42555589]
[1756075253694,0.1048,4754.4,4753.7,2.76362454]
[1756075253999,1.618,4755.5,4753.2,0.1094353]
[1756075254000,0.1048,4755.0,4754.8,2.10311288]
[1756075254179,0.1048,4755.0,4754.3,0.1048]
[1756075254180,0.1048,4755.0,4754.9,2.10309365]
[1756075254582,0.1048,4755.0,4754.3,0.1048]
[1756075254899,0.1048,4755.0,4754.9,2.10309365]
[1756075255105,0.1048,4755.0,4754.9,2.31340302]
[1756075255302,0.001,4755.2,4754.9,2.31340302]
[1756075256592,0.001,4755.2,4755.1,2.10300519]
[1756075262515,0.001,4755.2,4753.7,1.617]
[1756075262723,0.001,4755.2,4753.9,5.10353604]
[1756075263033,0.001,4755.2,4754.7,2.10315383]
[1756075263226,0.001,4755.2,4755.1,2.10300519]
[1756075264307,0.001,4755.2,4754.1,3.66]
[1756075264499,0.001,4755.2,4754.0,2.03134363]
[1756075264700,0.4333,4755.1,4754.6,2.10320707]
[1756075265119,0.4333,4755.1,4754.3,2.10334815]
[1756075265120,0.4333,4755.1,4754.5,2.10323755]
[1756075265326,0.1048,4754.7,4754.1,2.10340897]
[1756075265507,0.1048,4754.7,4754.6,2.10322634]
[1756075265709,0.1048,4754.7,4754.1,2.10341705]
[1756075266031,0.826,4754.7,4754.2,2.1034033]
[1756075266330,0.3927,4754.7,4754.4,2.10328238]
[1756075266535,0.826,4754.7,4753.9,0.1048]
[1756075266699,0.826,4754.7,4754.6,2.10322634]
[1756075267041,0.5381,4754.7,4754.6,2.10322634]
[1756075267240,0.5381,4754.7,4754.4,2.10328131]
[1756075267407,0.4333,4754.6,4752.9,1.617]
[1756075267603,0.1048,4754.2,4753.6,0.1048]
[1756075267802,0.1048,4754.2,4754.1,2.10344755]
[1756075268506,0.1048,4754.2,4753.9,2.10350375]
[1756075268702,0.1048,4754.2,4753.6,2.2084615]
[1756075268703,0.1048,4754.2,4753.7,5.10358139]
[1756075268913,0.2879,4753.9,4753.2,2.10783156]
[1756075269134,0.1048,4753.8,4753.2,0.004]
[1756075269323,0.2879,4753.3,4753.2,0.004]
[1756075269829,0.7212,4753.3,4753.2,0.004]
[1756075270836,0.1048,4753.4,4753.2,2.10784096]
[1756075271039,0.7212,4753.3,4753.2,0.004]
[1756075271610,0.1048,4753.4,4753.3,2.10380156]
[1756075271805,1.617,4754.4,4753.3,0.21518016]
[1756075271806,0.1048,4753.8,4753.3,0.21518016]
[1756075272006,0.1048,4753.8,4753.7,2.10362454]
[1756075272251,2.0503,4754.4,4753.5,2.10369528]
[1756075272252,1.617,4754.4,4753.5,2.10369528]
[1756075272451,0.001,4754.7,4753.3,0.21518016]
[1756075272757,0.001,4754.7,4754.4,2.10331277]
[1756075272906,0.001,4754.7,4754.2,2.10335988]
[1756075273107,0.001,4754.7,4754.4,2.10327131]
[1756075273334,0.001,4754.7,4753.4,0.1048]
[1756075273335,0.1048,4754.2,4753.4,0.1048]
[1756075273505,0.1048,4754.2,4753.8,2.10358029]
[1756075273706,0.1048,4754.2,4753.9,2.10353604]
[1756075273942,0.1048,4754.2,4754.0,2.10349179]
[1756075274186,0.5342,4754.2,4754.0,2.10349179]
[1756075274327,0.5342,4754.2,4753.6,3.0]
[1756075274640,0.5342,4754.2,4753.9,2.10352452]
[1756075274840,0.1048,4754.2,4754.1,2.10344755]
[1756075275010,0.1048,4754.2,4754.0,2.10348575]
[1756075275210,0.1048,4754.2,4753.8,2.10358029]
[1756075275411,0.1048,4754.2,4754.1,2.10344755]
[1756075275608,0.1048,4754.2,4753.7,2.49030458]
[1756075275609,0.1048,4754.2,4754.0,2.1034545]
[1756075275836,0.1048,4754.2,4754.1,2.10344755]
[1756075277544,0.1048,4754.2,4754.1,2.40243171]
[1756075277741,0.1048,4754.2,4754.1,2.10344755]
[1756075278156,0.001,4754.7,4754.6,2.10322634]
[1756075278373,0.1058,4754.7,4754.6,2.10322634]
[1756075279068,0.7296,4754.7,4753.7,0.38671558]
[1756075279360,0.4294,4754.6,4753.3,2.10380156]
[1756075279663,0.1048,4753.9,4753.5,2.10371305]
[1756075279958,0.4294,4753.8,4753.5,2.10370876]
[1756075280164,0.4294,4753.8,4753.2,0.004]
[1756075280373,0.1048,4753.9,4753.7,2.10362454]
[1756075280969,0.5342,4753.9,4753.7,2.10362454]
[1756075281373,0.5342,4753.9,4753.2,0.68808]
[1756075281526,0.5342,4753.9,4753.7,2.10359979]
[1756075281724,0.5342,4753.9,4753.6,2.10366348]
[1756075281926,0.2992,4753.7,4753.2,0.004]
[1756075282126,0.2992,4753.7,4753.3,2.10376446]
[1756075282326,0.2992,4753.7,4753.2,0.004]
[1756075282327,0.4294,4753.6,4753.2,2.10783403]
[1756075282559,0.1048,4753.9,4753.4,2.10375731]
[1756075282560,0.4294,4753.5,4753.4,2.10375731]
[1756075283128,0.1048,4753.9,4753.8,2.10358029]
[1756075283342,0.1048,4753.9,4753.7,2.10362147]
[1756075283542,0.5342,4753.9,4753.7,2.10362147]
[1756075283762,0.5342,4753.9,4753.5,2.10370508]
[1756075284130,0.5342,4753.9,4753.8,2.10358029]
[1756075284131,0.1048,4753.9,4753.8,2.10358029]
[1756075284531,0.1048,4753.9,4753.5,0.21517051]
[1756075284833,0.4294,4753.8,4753.7,2.10362454]
[1756075285171,0.4294,4753.8,4753.2,0.004]
[1756075285172,0.7286,4753.8,4753.2,0.004]
[1756075285558,0.1048,4753.3,4753.2,0.004]
[1756075285736,0.404,4753.3,4753.2,0.004]
[1756075286171,0.8334,4753.3,4753.2,0.004]
[1756075292986,0.1048,4753.3,4753.2,0.004]
[1756075293195,0.1048,4753.3,4753.2,0.21918861]
[1756075293360,0.8334,4753.3,4753.2,0.004]
[1756075293772,0.1048,4753.3,4753.2,0.004]
[1756075293971,0.8334,4753.3,4753.2,0.004]
[1756075296490,4.5194,4753.3,4753.2,0.004]
[1756075296999,4.5194,4753.3,4752.7,0.004]
[1756075297000,1.922,4753.2,4752.7,0.004]
[1756075297290,0.4048,4752.8,4752.7,0.004]
[1756075297671,0.8342,4752.8,4752.7,0.004]
[1756075298063,0.1056,4752.8,4752.7,0.004]
[1756075298271,0.4048,4752.8,4752.7,0.004]
[1756075298474,0.8342,4752.8,4752.7,0.004]
[1756075304073,3.8342,4752.8,4752.7,0.004]
[1756075304273,4.27815348,4752.8,4752.7,0.004]
[1756075304710,8.30417637,4752.8,4752.7,0.004]
[1756075304884,6.20015348,4752.8,4752.7,0.004]
[1756075305479,9.88515348,4752.8,4752.7,0.004]
[1756075306083,7.96315348,4752.8,4752.7,0.004]
[1756075306790,8.62315348,4752.8,4752.7,0.004]
[1756075308818,4.27815348,4752.8,4752.7,0.004]
[1756075309019,7.96315348,4752.8,4752.7,0.004]
[1756075311916,9.22515348,4752.8,4752.7,0.004]
[1756075313087,9.77861295,4752.8,4752.7,0.004]
[1756075313793,9.22515348,4752.8,4752.7,0.004]
[1756075313989,5.54015348,4752.8,4752.7,0.004]
[1756075314229,9.77861295,4752.8,4752.7,0.004]
[1756075315027,9.22515348,4752.8,4752.7,0.004]
[1756075315321,4.23455348,4752.8,4752.7,0.004]
[1756075317105,4.12895348,4752.8,4752.7,0.004]
[1756075317334,4.23455348,4752.8,4752.7,0.004]
[1756075317695,3.7906,4752.8,4752.7,0.004]
[1756075319033,3.7896,4752.8,4752.7,0.004]
[1756075319810,0.1056,4752.8,4752.7,0.004]
[1756075320012,3.7896,4752.8,4752.7,0.004]
[1756075320831,0.1056,4752.8,4752.7,2.10806716]
[1756075321046,0.1056,4752.8,4752.7,0.42602598]
[1756075321213,0.1056,4752.8,4752.7,0.004]
[1756075321802,0.8574,4752.8,4752.7,0.004]
[1756075324331,4.5404,4752.8,4752.7,0.004]
[1756075325248,4.98659253,4752.8,4752.7,0.004]
[1756075325450,0.8574,4752.8,4752.7,0.004]
[1756075325764,0.55188719,4752.8,4752.7,0.004]
[1756075325965,0.1056,4752.8,4752.7,0.004]
[1756075326256,3.7886,4752.8,4752.7,0.004]
[1756075327655,0.1056,4752.8,4752.7,0.004]
[1756075327840,0.1056,4752.8,4752.7,2.10806716]
[1756075328163,0.1056,4752.8,4752.7,2.53009203]
[1756075328360,0.1056,4752.8,4752.7,0.42602487]
[1756075329062,0.1056,4752.8,4752.7,0.004]
[1756075329362,0.1056,4752.8,4752.7,2.10806716]
[1756075331549,0.1056,4752.8,4752.7,0.004]
[1756075332162,0.1056,4752.8,4752.7,2.10806716]
[1756075333449,0.1056,4752.8,4752.7,8.20141531]
[1756075333982,0.1056,4752.8,4752.7,6.91828968]
[1756075334184,0.1056,4752.8,4752.7,9.02235684]
[1756075334563,0.1048,4753.1,4752.7,6.91828968]
[1756075334764,0.1058,4753.5,4753.0,6.09334815]
[1756075335690,0.1058,4753.5,4753.0,8.19727966]
[1756075335992,0.1058,4753.5,4753.4,2.10375731]
[1756075336496,0.001,4753.5,4753.4,2.10375731]
[1756075338289,0.001,4753.5,4753.4,2.20855731]
[1756075338597,0.001,4753.5,4753.4,2.31335731]
[1756075339169,0.001,4753.5,4753.4,5.97335731]
[1756075339494,0.001,4753.6,4753.5,2.10371305]
[1756075339792,0.001,4756.2,4754.2,2.10338303]
[1756075339793,3.679,4755.9,4754.2,2.10338303]
[1756075339958,3.679,4755.9,4754.4,11.30146297]
[1756075340160,0.1058,4755.2,4754.4,11.30146297]
[1756075340597,0.1058,4755.2,4754.4,11.38575697]
[1756075341283,0.1058,4755.2,4754.4,18.48010812]
[1756075341488,0.1058,4755.2,4754.4,20.51145175]
[1756075344105,0.3,4754.5,4754.4,5.22043763]
[1756075344325,0.7537,4754.5,4754.4,5.10331482]
[1756075344685,0.7537,4754.5,4754.4,3.0]
[1756075344986,0.7537,4754.5,4754.3,2.10333923]
[1756075345309,0.4537,4754.4,4753.7,13.1876993]
[1756075345483,0.4537,4754.4,4753.9,2.10353604]
[1756075345697,0.4537,4754.3,4753.9,2.10353604]
[1756075345904,0.4537,4754.2,4753.9,2.10353604]
[1756075346097,0.4537,4754.1,4753.9,2.10353604]
[1756075346306,0.7527,4754.0,4753.4,1.80938934]
[1756075346500,0.7527,4754.0,4752.9,3.677]
[1756075346501,0.1048,4753.7,4753.5,2.10368826]
[1756075346700,0.1048,4753.7,4753.6,3.0]
[1756075346991,0.4038,4753.7,4753.5,0.4537]
[1756075347191,0.4537,4753.6,4753.5,3.4537]
[1756075347415,0.1048,4753.7,4753.6,2.10366879]
[1756075347736,0.1048,4753.7,4753.6,5.56977697]
[1756075348817,0.4537,4754.3,4753.6,3.46610818]
[1756075349023,0.1048,4754.2,4754.0,2.10345275]
[1756075349392,0.1048,4754.2,4753.6,3.57090818]
[1756075349545,0.001,4754.5,4754.4,2.10331482]
[1756075349748,0.001,4754.5,4754.4,2.6136463]
[1756075350100,0.001,4754.5,4754.4,2.7184463]
[1756075350322,0.001,4754.5,4754.4,2.8232463]
[1756075350606,0.001,4754.5,4754.4,2.7184463]
[1756075350803,0.4547,4754.5,4754.4,2.7184463]
[1756075351024,0.7537,4754.5,4754.4,2.7184463]
[1756075351215,0.5595,4754.5,4754.4,2.10331482]
[1756075351631,0.1058,4754.5,4754.4,2.10331482]
[1756075352015,0.1058,4754.5,4754.2,0.632302]
[1756075352016,0.4048,4754.5,4754.2,0.632302]
[1756075352231,0.8585,4754.5,4753.4,13.1876993]
[1756075352409,0.1048,4754.2,4753.9,0.4048]
[1756075352734,0.1048,4754.2,4754.1,2.10344755]
[1756075353253,0.8575,4754.2,4753.9,0.4048]
[1756075353427,0.4537,4754.1,4753.9,0.4048]
[1756075353620,0.4537,4754.1,4754.0,2.10348007]
[1756075354150,0.7527,4754.1,4754.0,2.10348007]
[1756075354750,0.4537,4754.1,4754.0,2.10348007]
[1756075354937,0.4537,4754.1,4754.0,2.86466456]
[1756075355451,0.1058,4754.2,4754.1,2.10344755]
[1756075357942,0.4048,4754.2,4754.1,2.10344755]
[1756075358257,0.1058,4754.2,4754.1,2.10344755]
[1756075358954,0.8585,4754.2,4754.1,2.10344755]
[1756075359663,0.8585,4754.2,4753.9,0.4048]
[1756075359820,0.4537,4754.1,4753.4,2.10375731]
[1756075360151,0.299,4753.5,4753.4,2.10375731]
[1756075360356,0.299,4753.5,4753.4,2.9023978]
[1756075360535,0.7527,4753.5,4753.4,2.9023978]
[1756075360734,0.1058,4754.2,4753.4,16.8272971]
[1756075360923,0.1058,4754.2,4754.1,2.10344755]
[1756075361955,0.001,4754.2,4754.1,2.10344755]
[1756075362155,0.001,4754.2,4754.1,6.34171369]
[1756075362546,0.001,4754.2,4754.1,19.52941299]
[1756075362746,0.001,4754.2,4754.1,20.18941299]
[1756075362945,0.001,4754.5,4754.4,5.76331482]
[1756075363149,0.001,4754.5,4754.4,9.54111482]
[1756075363338,0.001,4754.5,4754.4,11.57245845]
[1756075364347,0.001,4754.5,4754.4,7.23945845]
[1756075364662,0.001,4754.5,4754.4,8.88111482]
[1756075365863,0.001,4754.5,4754.4,9.54111482]
[1756075366027,0.001,4754.5,4754.4,5.20811482]
[1756075366230,0.001,4754.5,4754.4,8.88011482]
[1756075366953,0.001,4754.5,4754.4,9.33761482]
[1756075367131,0.001,4754.5,4754.4,11.36895845]
[1756075367767,0.3153,4754.5,4754.4,7.69695845]
[1756075367944,0.3153,4754.5,4753.7,0.66]
[1756075367945,0.7728,4754.5,4753.8,3.672]
[1756075368151,0.4575,4754.4,4753.9,3.0]
[1756075368354,0.4575,4754.4,4754.1,5.10341208]
[1756075368975,0.3143,4754.2,4754.1,5.10341208]
[1756075369134,0.7718,4754.2,4754.1,5.10341208]
[1756075369335,0.7718,4754.2,4754.1,3.0]
[1756075369534,0.7718,4754.2,4754.0,0.3153]
[1756075369831,0.4575,4754.1,4753.9,2.10350424]
[1756075370030,0.3143,4754.0,4753.9,2.10350424]
[1756075370263,0.7718,4754.0,4753.9,2.10350424]
[1756075370776,0.001,4754.5,4754.4,2.10331482]
[1756075370938,0.001,4754.5,4754.4,5.77431482]
[1756075371137,0.001,4754.5,4754.4,8.77431482]
[1756075371568,0.001,4754.5,4754.4,9.23181482]
[1756075373040,0.7728,4754.5,4754.4,5.56081482]
[1756075373669,0.7728,4754.5,4754.2,2.10339063]
[1756075373861,0.7728,4754.5,4754.2,3.632298]
[1756075373862,0.3153,4754.5,4754.2,3.632298]
[1756075374058,0.3153,4754.5,4754.4,2.10331482]
[1756075374445,0.001,4754.5,4754.4,3.25421618]
[1756075374771,0.001,4754.5,4754.4,6.92421618]
[1756075375270,0.001,4754.5,4754.4,9.92421618]
[1756075375974,0.3153,4754.5,4754.4,6.92421618]
[1756075376164,0.7728,4754.5,4754.4,5.77331482]
[1756075376967,0.001,4754.5,4754.4,5.77331482]
[1756075379275,0.001,4754.5,4754.4,8.77331482]
[1756075379571,0.001,4754.5,4754.4,8.87811482]
[1756075380454,0.001,4754.5,4754.4,9.53811482]
[1756075380657,0.001,4754.5,4754.4,11.56945845]
[1756075380955,0.001,4754.7,4754.6,5.76322634]
[1756075381277,0.001,4755.2,4755.1,5.76300519]
[1756075381447,0.001,4755.2,4755.1,22.61970449]
[1756075381642,0.7728,4755.2,4755.1,8.77200519]
[1756075382043,0.7728,4755.2,4755.1,3.0]
[1756075382674,0.7728,4755.2,4755.0,5.77104611]
[1756075382848,0.4575,4755.1,4755.0,5.77104611]
[1756075383048,0.7718,4755.1,4755.0,5.77104611]
[1756075383278,0.7718,4755.1,4755.0,3.668]
[1756075383481,0.7718,4755.1,4754.4,3.668]
[1756075383663,0.1048,4754.9,4754.5,2.1032678]
[1756075383875,0.3143,4754.6,4754.5,2.1032678]
[1756075384176,0.7718,4754.6,4754.2,0.632298]
[1756075384396,0.4575,4754.5,4754.2,5.73569933]
[1756075384575,0.3143,4754.3,4754.2,5.73569933]
[1756075384872,0.7718,4754.3,4754.2,6.89729689]
[1756075385765,0.7718,4754.3,4754.2,0.632298]
[1756075385966,0.8766,4754.3,4754.0,3.667]
[1756075386277,0.4575,4754.2,4753.9,0.632338]
[1756075386486,0.3143,4754.0,4753.9,0.632338]
[1756075386648,0.7718,4754.0,4753.8,0.004]
[1756075386847,0.1048,4753.9,4753.8,0.004]
[1756075387072,0.8766,4753.9,4753.8,0.004]
[1756075387385,0.8766,4753.9,4753.8,2.10758029]
[1756075388376,0.1048,4753.9,4753.8,3.12074257]
[1756075388577,0.4575,4754.4,4754.0,2.10346089]
[1756075388578,0.1048,4754.1,4754.0,2.10346089]
[1756075388779,0.1048,4754.1,4754.0,8.77046089]
[1756075392062,0.001,4755.1,4754.0,8.77046089]
[1756075392063,0.001,4755.1,4755.0,2.10304942]
[1756075392385,0.001,4755.1,4755.0,6.18966603]
[1756075392884,0.001,4755.1,4755.0,6.27395803]
[1756075393308,0.001,4755.1,4755.0,9.27395803]
[1756075395489,0.001,4755.1,4755.0,5.60795803]
[1756075395692,0.001,4755.1,4755.0,9.27395803]
[1756075396072,0.001,4755.1,4755.0,9.37875803]
[1756075396593,0.001,4755.1,4755.0,10.03875803]
[1756075397597,0.001,4755.6,4755.1,5.76300519]
[1756075397808,0.001,4755.7,4755.6,2.10278408]
[1756075397959,0.1048,4756.5,4755.7,5.10273987]
[1756075399605,0.1048,4756.5,4755.7,5.18701087]
[1756075401983,0.4379,4756.3,4755.7,5.18701087]
[1756075402603,0.7427,4755.8,4755.7,5.18701087]
[1756075402810,0.7427,4755.8,4755.7,2.18701087]
[1756075402976,0.7427,4755.8,4755.7,2.10273987]
[1756075403177,0.001,4755.8,4755.7,3.31135886]
[1756075403408,0.001,4755.8,4755.7,7.07915886]
[1756075404326,0.001,4755.8,4755.7,10.07915886]
[1756075410341,0.001,4756.8,4756.4,0.66]
[1756075410545,0.001,4756.8,4756.7,2.10229781]
[1756075410741,0.001,4756.8,4756.7,10.79464144]
[1756075411335,0.001,4756.8,4756.7,11.89254144]
[1756075411532,0.3048,4756.8,4756.7,7.57154144]
[1756075411734,0.7427,4756.8,4756.7,9.20119781]
[1756075412633,0.7427,4756.8,4756.7,3.661]
[1756075412833,0.7427,4756.8,4756.7,5.76329781]
[1756075413540,0.7427,4756.8,4756.7,8.76329781]
[1756075414150,0.7427,4756.8,4756.7,6.661]
[1756075414336,0.7427,4756.8,4756.0,3.66]
[1756075414532,0.4379,4756.7,4756.0,3.66]
[1756075414854,0.4379,4756.7,4756.6,2.102342]
[1756075415026,0.7417,4756.7,4756.6,5.762342]
[1756075415943,0.7417,4756.7,4756.6,3.0]
[1756075417116,0.7417,4756.7,4756.6,5.102342]
[1756075418211,0.001,4756.8,4756.7,5.10229781]
[1756075418562,0.001,4756.8,4756.7,9.63753201]
[1756075418847,0.001,4756.8,4756.7,9.72178901]
[1756075419923,0.001,4756.8,4756.7,6.72178901]
[1756075420120,0.001,4756.8,4756.7,10.53886133]
[1756075420321,0.001,4756.8,4756.7,10.64366133]
[1756075421028,0.7427,4756.8,4756.7,6.848057]
[1756075421241,0.8475,4756.8,4756.6,5.10232034]
[1756075421428,0.4096,4756.8,4756.7,2.10229781]
[1756075421751,0.4096,4756.8,4756.1,3.71852696]
[1756075422068,0.4389,4756.7,4756.2,3.659]
[1756075422222,0.4086,4756.3,4756.0,0.4096]
[1756075422423,0.4379,4756.2,4756.1,6.658]
[1756075422734,0.7417,4756.2,4756.1,6.658]
[1756075423267,0.001,4756.7,4756.1,7.585508]
[1756075423547,0.1048,4756.6,4756.3,2.10247461]
[1756075423720,0.1048,4756.6,4756.5,2.1023862]
[1756075423919,0.4203,4756.6,4756.5,2.1023862]
[1756075424119,0.4203,4756.6,4756.4,5.76042489]
[1756075424421,0.4203,4756.6,4756.5,5.7603862]
[1756075424845,0.1048,4756.6,4756.5,7.35972308]
[1756075425152,0.001,4756.7,4756.6,2.102342]
[1756075425352,0.4711,4756.7,4756.6,2.102342]
[1756075425530,0.4711,4756.7,4756.6,5.102342]
[1756075425531,0.001,4756.7,4756.6,5.102342]
[1756075427737,0.7866,4756.7,4756.6,5.102342]
[1756075427944,0.7866,4756.7,4756.6,8.760342]
[1756075428325,0.7866,4756.7,4756.6,3.657]
[1756075428656,0.7866,4756.7,4756.6,8.759342]
[1756075431739,0.7866,4756.7,4756.6,5.102342]
[1756075432054,0.7866,4756.7,4756.6,5.759342]
[1756075433058,0.001,4756.7,4756.6,5.759342]
[1756075433826,0.001,4756.7,4756.6,6.48089266]
[1756075434533,0.001,4756.7,4756.6,9.48089266]
[1756075434741,0.001,4756.7,4756.6,9.58569266]
[1756075435127,0.4711,4756.7,4756.6,9.58469266]
[1756075435333,0.001,4756.7,4756.6,9.58469266]
[1756075436227,0.4711,4756.7,4756.6,9.58469266]
[1756075436444,0.001,4756.7,4756.6,9.58469266]
[1756075438260,0.001,4757.2,4757.1,2.76212104]
[1756075438464,0.001,4757.2,4757.1,22.60582034]
[1756075438632,0.001,4757.2,4757.1,22.71062034]
[1756075439028,0.001,4757.2,4757.1,22.79485734]
[1756075442772,0.1448,4758.4,4757.3,2.76203266]
[1756075442939,1e-08,4757.8,4757.7,5.76185593]
[1756075443138,0.1448,4758.4,4758.2,3.66]
[1756075443359,0.04,4758.4,4758.3,20.5026993]
[1756075443568,0.04,4758.4,4758.3,22.7090902]
[1756075443772,0.04,4758.4,4758.3,24.74043383]
[1756075444480,0.04,4758.4,4758.3,25.21053383]
[1756075445074,0.04,4758.4,4758.3,25.36539157]
[1756075445236,0.6159,4759.4,4759.3,2.10114932]
[1756075445569,0.9314,4759.4,4759.3,5.75514932]
[1756075446642,0.8266,4759.4,4759.3,5.75514932]
[1756075447268,0.8266,4759.4,4759.3,6.38673532]
[1756075447563,0.8266,4759.4,4759.3,5.75514932]
[1756075447861,0.041,4759.4,4759.3,7.89129295]
[1756075448065,0.041,4759.4,4759.3,10.89129295]
[1756075448278,0.8266,4759.4,4759.3,7.23729295]
[1756075448435,0.8266,4759.4,4759.3,8.75414932]
[1756075449041,0.5111,4759.4,4759.3,8.75414932]
[1756075449241,0.8266,4759.4,4759.3,8.75414932]
[1756075449639,0.8266,4759.4,4759.3,8.85894932]
[1756075451947,0.041,4759.4,4759.3,8.85894932]
[1756075452147,0.041,4759.4,4759.3,23.20582702]
[1756075453677,0.041,4759.4,4759.3,8.85894932]
[1756075453863,0.041,4759.4,4759.3,9.51894932]
[1756075456694,0.3336,4759.4,4759.3,5.20594932]
[1756075456848,0.8067,4759.4,4759.3,8.85694932]
[1756075457783,0.8067,4759.4,4759.3,3.1048]
[1756075457948,0.8067,4759.4,4759.3,6.651]
[1756075458356,0.8067,4759.4,4759.3,8.75214932]
[1756075460299,0.041,4759.4,4759.3,10.17753077]
[1756075460684,0.041,4759.4,4759.3,10.83753077]
[1756075466678,1e-08,4759.4,4759.3,10.83753077]
[1756075467266,0.001,4759.9,4759.8,2.76092861]
[1756075467466,0.04,4760.4,4760.3,2.76070793]
[1756075467700,0.04,4760.4,4760.3,8.51085623]
[1756075467866,0.04,4760.4,4760.3,11.61565623]
[1756075469200,0.04,4760.4,4760.3,12.12875623]
[1756075469901,0.04,4760.4,4760.3,8.47975623]
[1756075470080,0.04,4760.4,4760.3,12.12875623]
[1756075470590,0.8057,4760.4,4760.3,12.12875623]
[1756075471196,0.8057,4760.4,4760.3,8.47975623]
[1756075471508,0.04,4760.4,4760.3,12.12875623]
[1756075471874,0.1048,4761.9,4760.4,0.66]
[1756075472074,0.04,4764.4,4761.8,13.2924993]
[1756075472075,0.4731,4762.0,4761.8,13.2924993]
[1756075472278,0.7657,4761.9,4761.8,18.9477455]
[1756075472575,0.5131,4762.4,4762.3,2.09982571]
[1756075472767,0.8057,4762.4,4761.9,3.1048]
[1756075472972,0.8057,4762.4,4762.3,2.09982571]
[1756075473192,0.8057,4762.4,4762.3,5.74782571]
[1756075473825,0.8057,4762.4,4762.1,0.1048]
[1756075473984,0.4731,4762.3,4762.2,3.648]
[1756075474315,0.7657,4762.3,4762.2,8.7478698]
[1756075474490,0.7657,4762.3,4762.2,3.648]
[1756075474685,0.7657,4762.3,4761.8,1.615]
[1756075474915,0.4731,4762.2,4761.9,3.648]
[1756075475118,0.2926,4762.0,4761.9,3.648]
[1756075475298,0.7657,4762.0,4761.9,3.648]